fUST/lending_fUST_20260109
["ID","MTS","AMOUNT","RATE_DAILY","PERIOD"]
[401054910,1767894654854,-151.0,0.000288,7]
[401054911,1767894654865,-151.0,0.000288,7]
[401054912,1767894654875,-341.324064,0.000288,7]
[401054913,1767894654885,-341.324064,0.000288,7]
[401054914,1767894654896,-341.324064,0.000288,7]
[401054915,1767894654906,-341.324064,0.000288,7]
[401054916,1767894654918,-1222.595979,0.000288,7]
[401054917,1767894654928,-1222.595979,0.000288,7]
[401054918,1767894654942,-1222.595979,0.000288,7]
[401054919,1767894654952,-200.455685,0.000288,7]
[401054920,1767894654963,-1222.595979,0.000288,7]
[401054921,1767894654974,-151.0,0.000288,7]
[401054922,1767894654984,-522.121584,0.000288,7]
[401054923,1767894654996,-151.0,0.000288,7]
[401054924,1767894655006,-522.121584,0.000288,7]
[401054925,1767894655017,-157.291642,0.000288,7]
[401054926,1767894655027,-522.121584,0.000288,7]
[401054927,1767894655037,-522.121584,0.000288,7]
[401054928,1767894655047,-183.558633,0.000288,7]
[401054929,1767894655057,-183.558633,0.000288,7]
[401054930,1767894655067,-183.558633,0.000288,7]
[401054931,1767894655078,-183.558633,0.000288,7]
[401054932,1767894655087,-155.515996,0.000288,7]
[401054933,1767894655097,-2391.210697,0.000288,7]
[401054934,1767894655108,-2391.210697,0.000288,7]
[401054935,1767894655118,-151.0,0.000288,7]
[401054936,1767894655130,-2391.210697,0.000288,7]
[401054937,1767894655320,-154.07937,0.000288,7]
[401054938,1767894655331,-171.590843,0.000288,7]
[401054939,1767894655341,-151.0,0.000288,7]
[401054940,1767894655350,-248.949077,0.000288,7]
[401054941,1767894655360,-248.949077,0.000288,7]
[401054942,1767894655369,-248.949077,0.000288,7]
[401054943,1767894655379,-248.949077,0.000288,7]
[401054944,1767894655388,-151.366366,0.000288,2]
[401054945,1767894655398,-151.0,0.000288,7]
[401054946,1767894655408,-151.0,0.000288,7]
[401054947,1767894655418,-151.0,0.000288,7]
[401054948,1767894655428,-172.705914,0.000288,7]
[401054949,1767894655438,-172.705914,0.000288,7]
[401054950,1767894655448,-172.705914,0.000288,7]
[401054951,1767894655457,-172.705914,0.000288,7]
[401054952,1767894655467,-151.0,0.000288,7]
[401054953,1767894655477,-151.0,0.000288,7]
[401054954,1767894655486,-151.0,0.000288,7]
[401054955,1767894655495,-154.125017,0.000288,7]
[401054956,1767894655504,-151.0,0.000288,7]
[401054957,1767894655514,-916.0706166,0.0002881,24]
[401054958,1767894655523,-1840.0,0.00028877,7]
[401054959,1767894655533,-1840.0,0.00028928,2]
[401054960,1767894655543,-1200.0,0.00028947,7]
[401054961,1767894655552,-1840.0,0.00028959,2]
[401054962,1767894655567,-1840.0,0.00028964,2]
[401054963,1767894655576,-625.10994,0.00028964,7]
[401054964,1767894655585,-625.10994,0.00028964,7]
[401054965,1767894655594,-625.10994,0.00028964,7]
[401054966,1767894655604,-625.10994,0.00028964,7]
[401054967,1767894655613,-151.0,0.00028964,7]
[401054968,1767894655622,-151.0,0.00028964,7]
[401054969,1767894655631,-151.0,0.00028964,7]
[401054970,1767894655641,-151.0,0.00028964,7]
[401054971,1767894655650,-151.0,0.00028964,7]
[401054972,1767894655659,-169.22404,0.00028964,7]
[401054973,1767894655669,-289.370538,0.00028964,7]
[401054974,1767894655678,-289.370538,0.00028964,7]
[401054975,1767894655687,-289.370538,0.00028964,7]
[401054976,1767894655697,-289.370538,0.00028964,7]
[401054977,1767894655706,-388.092813,0.00028964,7]
[401054978,1767894655715,-622.20825,0.00028964,7]
[401054979,1767894655726,-388.092813,0.00028964,7]
[401054980,1767894655736,-622.20825,0.00028964,7]
[401054981,1767894655746,-388.092813,0.00028964,7]
[401054982,1767894655755,-622.20825,0.00028964,7]
[401054983,1767894655765,-388.092813,0.00028964,7]
[401054984,1767894655774,-622.20825,0.00028964,7]
[401054985,1767894655784,-151.0,0.00028964,7]
[401054986,1767894655793,-151.0,0.00028964,7]
[401054987,1767894655803,-303.930909,0.00028964,7]
[401054988,1767894655812,-303.930909,0.00028964,7]
[401054989,1767894655821,-303.930909,0.00028964,7]
[401054990,1767894655831,-303.930909,0.00028964,7]
[401054991,1767894655841,-5439.05122134,0.00028988,2]
[401054992,1767894655852,-500.0,0.00028992,7]
[401054993,1767894655862,-26101.79369213,0.00029,2]
[401054994,1767894655872,-890.36644943,0.00029,2]
[401054995,1767894655881,-264.296067,0.00029,7]
[401054996,1767894655890,-151.0,0.00029,7]
[401054997,1767894655900,-151.0,0.00029,7]
[401054998,1767894655909,-151.0,0.00029,7]
[401054999,1767894655924,-465.027669,0.00029,7]
[401055000,1767894655933,-465.027669,0.00029,7]
[401055001,1767894655943,-465.027669,0.00029,7]
[401055002,1767894655952,-465.027669,0.00029,7]
[401055003,1767894655963,-1041.66666667,0.00029,7]
[401055004,1767894655973,-151.0,0.00029,7]
[401055005,1767894655982,-151.0,0.00029,7]
[401055006,1767894655994,-151.0,0.00029,7]
[401055007,1767894656003,-151.0,0.00029,7]
[401055008,1767894656013,-151.0,0.00029,7]
[401055009,1767894656022,-151.0,0.00029,7]
[401055010,1767894656031,-151.0,0.00029,7]
[401055011,1767894656041,-204.768677,0.00029,7]
[401055012,1767894656051,-189.075092,0.00029,7]
[401055013,1767894656060,-189.075092,0.00029,7]
[401055014,1767894656070,-189.075092,0.00029,7]
[401055015,1767894656079,-189.075092,0.00029,7]
[401055016,1767894656089,-699.163556,0.00029,7]
[401055017,1767894656098,-699.163556,0.00029,7]
[401055018,1767894656107,-699.163556,0.00029,7]
[401055019,1767894656117,-151.0,0.00029,7]
[401055020,1767894656126,-699.163556,0.00029,7]
[401055021,1767894656136,-1559.95087052,0.00029024,2]
[401055022,1767894656145,-215.0,0.00029041,32]
[401055023,1767894656155,-700.12098692,0.00029041,5]
[401055024,1767894656165,-950.0,0.00029041,5]
[401055025,1767894656178,-450.0,0.00029041,5]
[401055026,1767894656188,-450.0,0.00029041,5]
[401055027,1767894656198,-1840.0,0.00029075,2]
[401055028,1767894656208,-1841.0,0.00029076,2]
[401055029,1767894656218,-151.0,0.00029076,7]
[401055030,1767894656227,-252.435007,0.00029076,7]
[401055031,1767894656237,-412.85,0.00029076,7]
[401055032,1767894656256,-412.85,0.00029076,7]
[401055033,1767894656267,-412.85,0.00029076,7]
[401055034,1767894656277,-412.85,0.00029076,7]
[401055035,1767894656287,-1840.0,0.00029093,2]
[401055036,1767894656297,-414.09,0.000291,2]
[401055037,1767894656308,-1200.0,0.00029109,7]
[401055038,1767894656319,-1840.0,0.00029116,7]
[401055039,1767894656329,-500.0,0.00029217,7]
[401055040,1767894656339,-151.0,0.00029282,7]
[401055041,1767894656349,-151.0,0.00029282,7]
[401055042,1767894656359,-151.0,0.00029282,7]
[401055043,1767894656368,-151.0,0.00029282,7]
[401055044,1767894656378,-151.0,0.00029282,7]
[401055045,1767894656388,-151.0,0.00029282,7]
[401055046,1767894656398,-151.0,0.00029282,7]
[401055047,1767894656407,-151.0,0.00029282,7]
[401055048,1767894656416,-212.81488,0.00029282,7]
[401055049,1767894656427,-1200.0,0.00029288,7]
[401055050,1767894656436,-1200.0,0.00029315,7]
[401055051,1767894656446,-1840.0,0.00029465,7]
[401055052,1767894656456,-500.0,0.00029467,7]
[401055053,1767894656465,-1840.0,0.00029489,2]
[401055054,1767894656475,-1840.0,0.00029493,7]
[401055055,1767894656486,-5060.38784804,0.000295,2]
[401055056,1767894656495,-167.4,0.000295,7]
[401055057,1767894656506,-1200.0,0.00029502,7]
[401055058,1767894656516,-1200.0,0.00029569,7]
[401055059,1767894656525,-2000.0,0.00029573,10]
[401055060,1767894656535,-2000.0,0.00029581,10]
[401055061,1767894656545,-1050.0,0.00029589,5]
[401055062,1767894656554,-550.0,0.00029589,5]
[401055063,1767894656564,-550.0,0.00029589,5]
[401055064,1767894656574,-810.2,0.0002959,3]
[401055065,1767894656583,-2000.0,0.0002959,10]
[401055066,1767894656593,-2000.0,0.00029599,10]
[401055067,1767894656602,-2000.0,0.00029608,10]
[401055068,1767894656613,-2000.0,0.00029617,10]
[401055069,1767894656623,-2000.0,0.00029625,10]
[401055070,1767894656633,-1841.0,0.00029631,2]
[401055071,1767894656643,-2000.0,0.00029634,10]
[401055072,1767894656653,-5000.0,0.00029635,2]
[401055073,1767894656665,-2000.0,0.00029643,10]
[401055074,1767894656677,-2000.0,0.00029652,10]
[401055075,1767894656687,-2000.0,0.00029661,10]
[401055076,1767894656697,-2000.0,0.00029669,10]
[401055077,1767894656706,-2000.0,0.00029678,10]
[401055078,1767894656716,-2000.0,0.00029682,7]
[401055079,1767894656726,-2000.0,0.00029687,10]
[401055080,1767894656735,-2000.0,0.00029696,10]
[401055081,1767894656744,-875.15,0.000297,7]
[401055082,1767894656754,-1362105.08392755,0.000297,2]
[401055083,1767894656763,-2000.0,0.00029705,10]
[401055084,1767894656772,-2000.0,0.00029713,10]
[401055085,1767894656782,-2000.0,0.00029722,10]
[401055086,1767894656791,-2000.0,0.00029731,10]
[401055087,1767894656801,-2000.0,0.0002974,10]
[401055088,1767894656810,-2000.0,0.00029749,10]
[401055089,1767894656820,-2000.0,0.00029757,10]
[401055090,1767894656829,-2000.0,0.00029766,10]
[401055091,1767894656839,-2000.0,0.00029775,10]
[401055092,1767894656848,-2000.0,0.00029784,10]
[401055093,1767894656858,-2000.0,0.00029793,10]
[401055094,1767894656867,-163.27,0.000298,7]
[401055095,1767894656877,-164.69,0.000298,7]
[401055096,1767894656886,-20550.55,0.000298,2]
[401055097,1767894656895,-1502.08,0.000298,14]
[401055098,1767894656904,-2000.0,0.00029801,10]
[401055099,1767894656914,-2000.0,0.0002981,10]
[401055100,1767894656927,-2000.0,0.00029819,10]
[401055101,1767894656936,-2000.0,0.00029828,10]
[401055102,1767894656945,-2000.0,0.00029837,10]
[401055103,1767894656955,-2000.0,0.00029845,10]
[401055104,1767894656966,-1840.0,0.00029851,7]
[401055105,1767894656975,-2000.0,0.00029854,10]
[401055106,1767894656986,-2000.0,0.00029863,10]
[401055107,1767894656996,-1841.0,0.00029881,2]
[401055108,1767894657005,-916.0706166,0.00029919,25]
[401055109,1767894657016,-14599.0,0.0003,10]
[401055110,1767894657026,-12069.01025408,0.0003,30]
[401055111,1767894657035,-1125.0,0.0003,5]
[401055112,1767894657045,-165.46,0.0003,5]
[401055113,1767894657055,-161.70961274,0.0003,9]
[401055114,1767894657064,-300.0,0.0003,60]
[401055115,1767894657074,-269.70662881,0.0003,2]
[401055116,1767894657083,-2363.90538733,0.0003,2]
[401055117,1767894657092,-14011.26875714,0.0003,7]
[401055118,1767894657101,-1041.66666667,0.0003,30]
[401055119,1767894657110,-1098.76,0.0003,30]
[401055120,1767894657119,-1041.66666667,0.0003,10]
[401055121,1767894657129,-10000.0,0.00030036,2]
[401055122,1767894657138,-1200.0,0.00030045,7]
[401055123,1767894657148,-1098.76,0.0003006,30]
[401055124,1767894657158,-1521.15,0.000301,2]
[401055125,1767894657167,-28365.88550987,0.0003013,20]
[401055126,1767894657177,-4017.17054394,0.0003013,30]
[401055127,1767894657187,-3851.05736369,0.00030136,60]
[401055128,1767894657196,-3851.05736369,0.00030136,60]
[401055129,1767894657205,-3851.05736369,0.00030136,60]
[401055130,1767894657214,-3851.05736369,0.00030136,60]
[401055131,1767894657223,-3851.05736369,0.00030136,60]
[401055132,1767894657232,-512.70301219,0.00030136,60]
[401055133,1767894657241,-535.54752534,0.00030136,12]
[401055134,1767894657250,-500.0,0.00030136,15]
[401055135,1767894657261,-500.0,0.00030136,15]
[401055136,1767894657270,-500.0,0.00030136,15]
[401055137,1767894657280,-500.0,0.00030136,15]
[401055138,1767894657290,-500.0,0.00030136,15]
[401055139,1767894657300,-500.0,0.00030136,15]
[401055140,1767894657311,-500.0,0.00030136,15]
[401055141,1767894657321,-500.0,0.00030136,15]
[401055142,1767894657331,-500.0,0.00030136,15]
[401055143,1767894657341,-500.0,0.00030136,15]
[401055144,1767894657350,-500.0,0.00030136,15]
[401055145,1767894657360,-648.8173855,0.00030136,15]
[401055146,1767894657369,-1000.0,0.00030136,2]
[401055147,1767894657379,-1000.0,0.00030136,2]
[401055148,1767894657388,-1000.0,0.00030136,2]
[401055149,1767894657397,-1000.0,0.00030136,2]
[401055150,1767894657407,-1000.0,0.00030136,2]
[401055151,1767894657417,-1000.0,0.00030136,2]
[401055152,1767894657426,-1000.0,0.00030136,2]
[401055153,1767894657436,-1000.0,0.00030136,2]
[401055154,1767894657445,-1000.0,0.00030136,2]
[401055155,1767894657455,-937.30796305,0.00030136,2]
[401055156,1767894657463,-500.0,0.00030136,30]
[401055157,1767894657473,-500.0,0.00030136,30]
[401055158,1767894657483,-500.0,0.00030136,30]
[401055159,1767894657492,-500.0,0.00030136,30]
[401055160,1767894657502,-509.74196328,0.00030136,30]
[401055161,1767894657513,-284.584796,0.00030136,7]
[401055162,1767894657524,-500.0,0.00030136,8]
[401055163,1767894657533,-500.0,0.00030136,8]
[401055164,1767894657542,-500.0,0.00030136,8]
[401055165,1767894657552,-500.0,0.00030136,8]
[401055166,1767894657562,-500.0,0.00030136,8]
[401055167,1767894657570,-151.0,0.00030136,7]
[401055168,1767894657579,-278.670789,0.00030136,7]
[401055169,1767894657588,-500.0,0.00030136,30]
[401055170,1767894657597,-500.0,0.00030136,30]
[401055171,1767894657606,-500.0,0.00030136,30]
[401055172,1767894657615,-500.0,0.00030136,30]
[401055173,1767894657625,-500.0,0.00030136,30]
[401055174,1767894657691,-500.0,0.00030136,30]
[401055175,1767894657701,-500.0,0.00030136,30]
[401055176,1767894657711,-500.0,0.00030136,30]
[401055177,1767894657720,-500.0,0.00030136,30]
[401055178,1767894657729,-500.0,0.00030136,30]
[401055179,1767894657738,-500.0,0.00030136,30]
[401055180,1767894657748,-500.0,0.00030136,30]
[401055181,1767894657757,-500.0,0.00030136,30]
[401055182,1767894657766,-500.0,0.00030136,30]
[401055183,1767894657776,-601.4235728,0.00030136,30]
[401055184,1767894657785,-1000.0,0.00030136,2]
[401055185,1767894657795,-1000.0,0.00030136,2]
[401055186,1767894657804,-1000.0,0.00030136,2]
[401055187,1767894657814,-1000.0,0.00030136,2]
[401055188,1767894657823,-1000.0,0.00030136,2]
[401055189,1767894657833,-1000.0,0.00030136,2]
[401055190,1767894657842,-1000.0,0.00030136,2]
[401055191,1767894657851,-1000.0,0.00030136,2]
[401055192,1767894657860,-1000.0,0.00030136,2]
[401055193,1767894657870,-1000.0,0.00030136,2]
[401055194,1767894657879,-1000.0,0.00030136,2]
[401055195,1767894657889,-1000.0,0.00030136,2]
[401055196,1767894657897,-584.62852237,0.00030136,2]
[401055197,1767894657908,-500.0,0.00030136,7]
[401055198,1767894657917,-191.68238698,0.00030136,7]
[401055199,1767894657929,-500.0,0.00030136,60]
[401055200,1767894657938,-500.0,0.00030136,60]
[401055201,1767894657947,-500.0,0.00030136,60]
[401055202,1767894657956,-258.34773752,0.00030136,60]
[401055203,1767894657968,-500.0,0.00030136,30]
[401055204,1767894657978,-500.0,0.00030136,30]
[401055205,1767894657987,-500.0,0.00030136,30]
[401055206,1767894657996,-500.0,0.00030136,30]
[401055207,1767894658006,-500.0,0.00030136,30]
[401055208,1767894658015,-500.0,0.00030136,30]
[401055209,1767894658024,-500.0,0.00030136,30]
[401055210,1767894658033,-500.0,0.00030136,30]
[401055211,1767894658043,-500.0,0.00030136,30]
[401055212,1767894658052,-500.0,0.00030136,30]
[401055213,1767894658061,-500.0,0.00030136,30]
[401055214,1767894658070,-500.0,0.00030136,30]
[401055215,1767894658080,-500.0,0.00030136,30]
[401055216,1767894658089,-500.0,0.00030136,30]
[401055217,1767894658098,-500.0,0.00030136,30]
[401055218,1767894658108,-500.0,0.00030136,30]
[401055219,1767894658119,-500.0,0.00030136,30]
[401055220,1767894658128,-500.0,0.00030136,30]
[401055221,1767894658144,-500.0,0.00030136,30]
[401055222,1767894658164,-500.0,0.00030136,30]
[401055223,1767894658178,-500.0,0.00030136,30]
[401055224,1767894658188,-500.0,0.00030136,30]
[401055225,1767894658198,-500.0,0.00030136,30]
[401055226,1767894658207,-152.77949599,0.00030136,30]
[401055227,1767894658216,-500.0,0.00030136,7]
[401055228,1767894658225,-500.0,0.00030136,7]
[401055229,1767894658234,-500.0,0.00030136,7]
[401055230,1767894658244,-500.0,0.00030136,7]
[401055231,1767894658253,-500.0,0.00030136,7]
[401055232,1767894658262,-500.0,0.00030136,7]
[401055233,1767894658271,-500.0,0.00030136,7]
[401055234,1767894658281,-500.0,0.00030136,7]
[401055235,1767894658290,-500.0,0.00030136,7]
[401055236,1767894658299,-500.0,0.00030136,7]
[401055237,1767894658308,-500.0,0.00030136,7]
[401055238,1767894658317,-500.0,0.00030136,7]
[401055239,1767894658327,-500.0,0.00030136,7]
[401055240,1767894658337,-500.0,0.00030136,7]
[401055241,1767894658347,-500.0,0.00030136,7]
[401055242,1767894658356,-500.0,0.00030136,7]
[401055243,1767894658366,-296.04074694,0.00030136,7]
[401055244,1767894658376,-500.0,0.00030136,14]
[401055245,1767894658385,-500.0,0.00030136,14]
[401055246,1767894658395,-500.0,0.00030136,14]
[401055247,1767894658405,-500.0,0.00030136,14]
[401055248,1767894658414,-500.0,0.00030136,14]
[401055249,1767894658426,-500.0,0.00030136,14]
[401055250,1767894658436,-500.0,0.00030136,14]
[401055251,1767894658456,-500.0,0.00030136,14]
[401055252,1767894658466,-511.6,0.00030136,14]
[401055253,1767894658475,-500.0,0.00030136,14]
[401055254,1767894658485,-576.39023583,0.00030136,14]
[401055255,1767894658495,-500.0,0.00030136,100]
[401055256,1767894658504,-500.0,0.00030136,100]
[401055257,1767894658514,-500.0,0.00030136,100]
[401055258,1767894658524,-500.0,0.00030136,100]
[401055259,1767894658534,-500.0,0.00030136,100]
[401055260,1767894658543,-500.0,0.00030136,100]
[401055261,1767894658552,-255.06774883,0.00030136,100]
[401055262,1767894658561,-517.26411692,0.00030136,60]
[401055263,1767894658570,-185.84971769,0.00030136,30]
[401055264,1767894658579,-500.0,0.00030136,14]
[401055265,1767894658588,-500.0,0.00030136,14]
[401055266,1767894658597,-500.0,0.00030136,14]
[401055267,1767894658606,-500.0,0.00030136,14]
[401055268,1767894658614,-500.0,0.00030136,14]
[401055269,1767894658623,-500.50983515,0.00030136,14]
[401055270,1767894658632,-500.0,0.00030136,60]
[401055271,1767894658642,-500.0,0.00030136,60]
[401055272,1767894658651,-500.0,0.00030136,60]
[401055273,1767894658663,-500.0,0.00030136,60]
[401055274,1767894658676,-500.0,0.00030136,60]
[401055275,1767894658685,-500.0,0.00030136,2]
[401055276,1767894658694,-500.0,0.00030136,2]
[401055277,1767894658703,-500.0,0.00030136,2]
[401055278,1767894658713,-500.0,0.00030136,2]
[401055279,1767894658722,-500.0,0.00030136,2]
[401055280,1767894658733,-500.0,0.00030136,2]
[401055281,1767894658742,-500.0,0.00030136,2]
[401055282,1767894658751,-500.0,0.00030136,2]
[401055283,1767894658760,-500.0,0.00030136,2]
[401055284,1767894658769,-500.0,0.00030136,2]
[401055285,1767894658778,-500.0,0.00030136,2]
[401055286,1767894658788,-500.0,0.00030136,2]
[401055287,1767894658797,-500.0,0.00030136,2]
[401055288,1767894658806,-500.0,0.00030136,2]
[401055289,1767894658814,-500.0,0.00030136,2]
[401055290,1767894658823,-500.0,0.00030136,2]
[401055291,1767894658832,-500.0,0.00030136,2]
[401055292,1767894658842,-500.0,0.00030136,2]
[401055293,1767894658851,-500.0,0.00030136,2]
[401055294,1767894658860,-500.0,0.00030136,2]
[401055295,1767894658869,-500.0,0.00030136,2]
[401055296,1767894658879,-620.35771465,0.00030136,2]
[401055297,1767894658888,-500.0,0.00030136,2]
[401055298,1767894658897,-500.0,0.00030136,2]
[401055299,1767894658907,-500.0,0.00030136,2]
[401055300,1767894658920,-500.0,0.00030136,2]
[401055301,1767894658930,-500.0,0.00030136,2]
[401055302,1767894658940,-500.0,0.00030136,2]
[401055303,1767894658950,-500.0,0.00030136,2]
[401055304,1767894658958,-500.0,0.00030136,2]
[401055305,1767894658969,-500.0,0.00030136,2]
[401055306,1767894658979,-307.93703483,0.00030136,2]
[401055307,1767894658988,-600.55324416,0.00030136,2]
[401055308,1767894658998,-500.0,0.00030136,30]
[401055309,1767894659007,-158.19492184,0.00030136,30]
[401055310,1767894659017,-9194.49,0.00030136,3]
[401055311,1767894659027,-9194.49,0.00030136,3]
[401055312,1767894659036,-9194.49,0.00030136,3]
[401055313,1767894659046,-9194.49,0.00030136,3]
[401055314,1767894659056,-9194.49,0.00030136,3]
[401055315,1767894659065,-9194.49,0.00030136,3]
[401055316,1767894659075,-9194.49,0.00030136,3]
[401055317,1767894659085,-9194.49,0.00030136,3]
[401055318,1767894659095,-1718.22,0.00030136,6]
[401055319,1767894659104,-9194.49,0.00030136,3]
[401055320,1767894659114,-9194.49,0.00030136,3]
[401055321,1767894659124,-9194.49,0.00030136,3]
[401055322,1767894659137,-9194.49,0.00030136,3]
[401055323,1767894659147,-9194.49,0.00030136,3]
[401055324,1767894659157,-9194.49,0.00030136,3]
[401055325,1767894659167,-9194.49,0.00030136,3]
[401055326,1767894659177,-9194.49,0.00030136,3]
[401055327,1767894659187,-9194.49,0.00030136,3]
[401055328,1767894659197,-9194.49,0.00030136,3]
[401055329,1767894659207,-9194.49,0.00030136,3]
[401055330,1767894659217,-9194.49,0.00030136,3]
[401055331,1767894659226,-9194.49,0.00030136,3]
[401055332,1767894659236,-9194.49,0.00030136,3]
[401055333,1767894659246,-9194.49,0.00030136,3]
[401055334,1767894659257,-9194.61818853,0.00030136,3]
[401055335,1767894659267,-1000.0,0.00030136,14]
[401055336,1767894659277,-1000.0,0.00030136,14]
[401055337,1767894659287,-1000.0,0.00030136,14]
[401055338,1767894659298,-1000.0,0.00030136,14]
[401055339,1767894659308,-1359.86,0.00030136,21]
[401055340,1767894659318,-1359.86,0.00030136,21]
[401055341,1767894659328,-1359.86,0.00030136,21]
[401055342,1767894659338,-1359.86,0.00030136,21]
[401055343,1767894659347,-1359.86,0.00030136,21]
[401055344,1767894659357,-1359.86,0.00030136,21]
[401055345,1767894659367,-1359.86,0.00030136,21]
[401055346,1767894659378,-500.0,0.00030136,2]
[401055347,1767894659388,-1359.86,0.00030136,21]
[401055348,1767894659398,-278.33212368,0.00030136,2]
[401055349,1767894659408,-1359.86,0.00030136,21]
[401055350,1767894659419,-1359.86,0.00030136,21]
[401055351,1767894659430,-1359.86,0.00030136,21]
[401055352,1767894659440,-1359.86,0.00030136,21]
[401055353,1767894659450,-1359.86,0.00030136,21]
[401055354,1767894659459,-1359.86,0.00030136,21]
[401055355,1767894659469,-1359.86,0.00030136,21]
[401055356,1767894659478,-1359.86,0.00030136,21]
[401055357,1767894659488,-1359.86,0.00030136,21]
[401055358,1767894659498,-1359.86,0.00030136,21]
[401055359,1767894659508,-1359.86,0.00030136,21]
[401055360,1767894659517,-1359.86,0.00030136,21]
[401055361,1767894659527,-1359.86,0.00030136,21]
[401055362,1767894659537,-1359.86,0.00030136,21]
[401055363,1767894659547,-1359.86,0.00030136,21]
[401055364,1767894659559,-1359.91966647,0.00030136,21]
[401055365,1767894659570,-167.94341584,0.00030136,14]
[401055366,1767894659580,-500.22877989,0.00030136,12]
[401055367,1767894659589,-500.0,0.00030136,7]
[401055368,1767894659599,-500.0,0.00030136,7]
[401055369,1767894659608,-500.0,0.00030136,7]
[401055370,1767894659617,-500.0,0.00030136,7]
[401055371,1767894659626,-500.0,0.00030136,7]
[401055372,1767894659635,-500.0,0.00030136,7]
[401055373,1767894659645,-500.0,0.00030136,7]
[401055374,1767894659656,-500.0,0.00030136,7]
[401055375,1767894659666,-500.0,0.00030136,7]
[401055376,1767894659677,-500.0,0.00030136,7]
[401055377,1767894659687,-500.0,0.00030136,7]
[401055378,1767894659697,-500.0,0.00030136,7]
[401055379,1767894659707,-500.0,0.00030136,7]
[401055380,1767894659717,-500.001,0.00030136,2]
[401055381,1767894659728,-1150.0,0.00030137,5]
[401055382,1767894659738,-188.0,0.00030137,38]
[401055383,1767894659747,-171.829328,0.00030137,120]
[401055384,1767894659757,-171.829328,0.00030137,120]
[401055385,1767894659767,-251.453668,0.00030137,120]
[401055386,1767894659777,-650.0,0.00030137,5]
[401055387,1767894659787,-650.0,0.00030137,5]
[401055388,1767894659798,-1013.0,0.00030137,7]
[401055389,1767894659807,-1841.0,0.00030145,2]
[401055390,1767894659817,-1521.15,0.000302,2]
[401055391,1767894659828,-414.09,0.000302,2]
[401055392,1767894659838,-1841.0,0.00030208,7]
[401055393,1767894659848,-1840.0,0.00030248,2]
[401055394,1767894659858,-1521.15,0.000303,2]
[401055395,1767894659867,-1521.15,0.000303,2]
[401055396,1767894659876,-1840.0,0.00030325,7]
[401055397,1767894659886,-1200.0,0.00030386,7]
[401055398,1767894659895,-1521.15,0.000304,2]
[401055399,1767894659905,-1521.15,0.000304,2]
[401055400,1767894659915,-1840.0,0.00030413,2]
[401055401,1767894659930,-1840.0,0.00030421,7]
[401055402,1767894659939,-1200.0,0.0003044,7]
[401055403,1767894659950,-1521.15,0.000305,2]
[401055404,1767894659959,-2146.0,0.00030536,2]
[401055405,1767894659969,-628.0,0.00030536,2]
[401055406,1767894659980,-1366.0,0.00030536,2]
[401055407,1767894659991,-417.0,0.00030536,2]
[401055408,1767894660001,-1200.0,0.00030581,7]
[401055409,1767894660011,-1840.0,0.00030596,2]